[Event "European Women Rapid-ch 2023"]
[Site "Monaco"]
[Date "2024.01.13"]
[Round "2.4"]
[White "Stefanova, Antoaneta"]
[Black "Agrest, Inna"]
[Result "1-0"]
[ECO "E64"]
[WhiteElo "2431"]
[BlackElo "2287"]
[Annotator "RC"]
[PlyCount "133"]
[EventDate "2023.12.19"]
[EventType "swiss"]
[EventCountry "MNC"]
[SourceTitle "playchess.com"]
[Source "ChessBase"]
[SourceQuality "1"]
[TimeControl "900+10"]

1. d4 {[%emt 0:00:01]} Nf6 {[%emt 0:00:01]} 2. Nf3 {[%emt 0:00:02]} g6 {[%emt 0:00:01]} 3. g3 {[%emt 0:00:12]} Bg7 {[%emt 0:00:02]} 4. Bg2 {[%emt 0:00:01]} O-O {[%emt 0:00:02]} 5. O-O {[%emt 0:00:01]} d6 {[%emt 0:00:01]} 6. a4 {[%emt 0:00:10]} Na6 {[%emt 0:00:18]} 7. Re1 {[%emt 0:00:29]} c5 {[%emt 0:00:22]} 8. d5 {[%emt 0:00:07]} Nc7 {[%emt 0:00:13]} 9. e4 {[%emt 0:00:38]} b6 {[%emt 0:00:03]} 10. c4 {[%emt 0:01:20]} Rb8 {[%emt 0:00:11]} 11. Nc3 {[%emt 0:00:19]} a6 {[%emt 0:00:06]} 12. e5 {[%emt 0:00:14]} Nfe8 {[%emt 0:00:18]} 13. Qe2 {[%emt 0:00:37]} Bg4 {[%emt 0:03:54]} 14. Bf4 {[%emt 0:00:34]} Qc8 {[%emt 0:01:46]} 15. Qe3 {[%emt 0:01:49]} b5 {[%emt 0:01:02]} 16. axb5 {[%emt 0:00:34]} axb5 {[%emt 0:00:02]} 17. Nd2 {[%emt 0:00:43]} Bf5 {[%emt 0:03:12]} 18. Bf1 {[%emt 0:02:04]} Bd7 {[%emt 0:02:06]} 19. exd6 {[%emt 0:03:03]} exd6 {[%emt 0:00:09]} 20. Nde4 {[%emt 0:00:02]} Bd4 {[%emt 0:00:56]} 21. Qd2 {[%emt 0:00:41]} Rb6 {[%emt 0:00:18]} 22. Bh6 {[%emt 0:01:17]} Bg7 {[%emt 0:00:59]} 23. Bxg7 {[%emt 0:00:04]} Kxg7 {[%emt 0:00:04]} 24. b4 {[%emt 0:00:01]} bxc4 {[%emt 0:00:43]} 25. bxc5 {[%emt 0:00:18]} dxc5 {[%emt 0:00:04]} 26. Nxc5 {[%emt 0:00:14]} Kg8 {[%emt 0:00:38]} 27. Qd4 {[%emt 0:01:51]} Bf5 {[%emt 0:00:36]} 28. Nd7 {[%emt 0:01:01]} Qxd7 {[%emt 0:00:37]} 29. Qxb6 {[%emt 0:00:01]} Qd6 {[%emt 0:00:16]} 30. Qd4 {[%emt 0:00:19]} Ne6 {[%emt 0:00:37]} 31. Qe3 {[%emt 0:00:25]} N6c7 {[%emt 0:00:10]} 32. Bxc4 {[%emt 0:00:07]} Nf6 {[%emt 0:00:11]} 33. Qe7 {[%emt 0:00:37]} Qd8 {[%emt 0:00:23]} 34. d6 {[%emt 0:00:28]} Ne6 {[%emt 0:00:04]} 35. Qxd8 {[%emt 0:00:21]} Rxd8 {[%emt 0:00:09]} 36. Nb5 {[%emt 0:00:03]} Nd7 {[%emt 0:00:19]} 37. Ra7 {[%emt 0:00:05]} Ndc5 {[%emt 0:00:02]} 38. f3 {[%emt 0:00:06]} h5 {[%emt 0:00:01]} 39. Re5 {[%emt 0:00:08]} Nd7 {[%emt 0:00:15]} 40. Re2 {[%emt 0:00:05]} Kg7 {[%emt 0:00:22]} 41. Kg2 {[%emt 0:00:16]} Kf6 {[%emt 0:00:03]} 42. h3 {[%emt 0:00:05]} h4 {[%emt 0:00:17]} 43. Bxe6 {[%emt 0:00:10]} Bxe6 {[%emt 0:00:02]} 44. gxh4 {[%emt 0:00:03]} Ne5 {[%emt 0:00:09]} 45. Rd2 {[%emt 0:00:08]} Nc4 {[%emt 0:00:03]} 46. Rd4 {[%emt 0:00:11]} Ne3+ {[%emt 0:00:02]} 47. Kf2 {[%emt 0:00:09]} Nf5 {[%emt 0:00:01]} 48. Rd2 {[%emt 0:00:07]} Nxh4 {[%emt 0:00:02]} 49. Nc3 {[%emt 0:00:16]} Nf5 {[%emt 0:00:12]} 50. Ne4+ {[%emt 0:00:01]} Kg7 {[%emt 0:00:03]} 51. Ng5 {[%emt 0:00:07]} Kf6 {[%emt 0:00:11]} 52. Ne4+ {[%emt 0:00:10]} Kg7 {[%emt 0:00:01]} 53. Rc7 {[%emt 0:00:22]} Kf8 {[%emt 0:00:56]} 54. Rc6 {[%emt 0:00:23]} Kg7 {[%emt 0:00:15]} 55. Nc5 {[%emt 0:00:03]} Kf6 {[%emt 0:00:04]} 56. d7 {[%emt 0:00:24]} Ke7 {[%emt 0:00:06]} 57. Nxe6 {[%emt 0:00:04]} fxe6 {[%emt 0:00:02]} 58. Rc7 {[%emt 0:00:05]} Nd6 {[%emt 0:00:06]} 59. Kg3 {[%emt 0:00:03]} Nf5+ {[%emt 0:00:25]} 60. Kf4 {[%emt 0:00:02]} Nd6 {[%emt 0:00:23]} 61. h4 {[%emt 0:00:06]} Nf7 {[%emt 0:00:07]} 62. Rc8 {[%emt 0:00:20]} Rxd7 {[%emt 0:00:06]} 63. Rxd7+ {[%emt 0:00:01]} Kxd7 {[%emt 0:00:02]} 64. Rg8 {[%emt 0:00:01]} e5+ {[%emt 0:00:21]} 65. Ke4 {[%emt 0:00:09]} Nd6+ {[%emt 0:00:04]} 66. Kxe5 {[%emt 0:00:04]} Nf5 {[%emt 0:00:02]} 67. h5 {[%emt 0:00:32]} 1-0

[Event "European Women Rapid-ch 2023"]
[Site "Monaco"]
[Date "2024.01.13"]
[Round "2.5"]
[White "Schippke, Manon"]
[Black "Hunt, Harriet V"]
[Result "1/2-1/2"]
[ECO "B81"]
[WhiteElo "2162"]
[BlackElo "2306"]
[Annotator "RC"]
[PlyCount "114"]
[EventDate "2023.12.19"]
[EventType "swiss"]
[EventCountry "MNC"]
[SourceTitle "playchess.com"]
[Source "ChessBase"]
[SourceQuality "1"]
[TimeControl "900+10"]

1. e4 {[%emt 0:00:03]} c5 {[%emt 0:00:02]} 2. Nf3 {[%emt 0:00:02]} d6 {[%emt 0:00:03]} 3. d4 {[%emt 0:00:02]} cxd4 {[%emt 0:00:01]} 4. Nxd4 {[%emt 0:00:02]} Nf6 {[%emt 0:00:01]} 5. Nc3 {[%emt 0:00:02]} a6 6. h3 {[%emt 0:00:06]} e6 {[%emt 0:00:19]} 7. g4 {[%emt 0:00:03]} h6 {[%emt 0:00:08]} 8. Bg2 {[%emt 0:01:39]} Be7 {[%emt 0:00:13]} 9. Be3 {[%emt 0:00:06]} Qc7 {[%emt 0:00:59]} 10. Qe2 {[%emt 0:00:54]} Nc6 {[%emt 0:01:08]} 11. O-O-O {[%emt 0:02:15]} Bd7 {[%emt 0:01:55]} 12. f4 {[%emt 0:02:20]} Na5 {[%emt 0:03:10]} 13. Kb1 {[%emt 0:01:42]} Rc8 {[%emt 0:00:39]} 14. h4 {[%emt 0:02:59]} Nc4 {[%emt 0:01:14]} 15. Bc1 {[%emt 0:00:15]} Qb6 {[%emt 0:00:48]} 16. Nb3 {[%emt 0:00:24]} Bb5 {[%emt 0:00:55]} 17. Nxb5 {[%emt 0:01:34]} axb5 {[%emt 0:00:13]} 18. g5 {[%emt 0:00:15]} Nd7 {[%emt 0:00:14]} 19. g6 {[%emt 0:00:57]} O-O {[%emt 0:02:09]} 20. gxf7+ {[%emt 0:00:04]} Rxf7 {[%emt 0:00:01]} 21. Bh3 {[%emt 0:00:10]} Nf8 {[%emt 0:00:01]} 22. f5 {[%emt 0:00:11]} Ra8 {[%emt 0:00:26]} 23. Rhg1 {[%emt 0:02:06]} Qa6 {[%emt 0:00:35]} 24. a3 {[%emt 0:00:01]} b4 {[%emt 0:00:09]} 25. Bf1 {[%emt 0:00:03]} b5 {[%emt 0:00:21]} 26. fxe6 {[%emt 0:00:55]} Nxe6 {[%emt 0:00:07]} 27. Bh3 {[%emt 0:00:12]} Nf8 {[%emt 0:00:40]} 28. e5 {[%emt 0:00:08]} Nxe5 {[%emt 0:00:17]} 29. Bg2 {[%emt 0:00:04]} Ra7 {[%emt 0:00:23]} 30. Bd5 {[%emt 0:00:02]} Bf6 {[%emt 0:00:18]} 31. Bxf7+ {[%emt 0:00:06]} Rxf7 {[%emt 0:00:05]} 32. Qe4 {[%emt 0:00:28]} bxa3 {[%emt 0:00:10]} 33. bxa3 {[%emt 0:00:01]} Nc4 {[%emt 0:00:10]} 34. Qd3 {[%emt 0:00:23]} Nxa3+ {[%emt 0:00:08]} 35. Bxa3 {[%emt 0:00:03]} Qxa3 {[%emt 0:00:02]} 36. Nd4 {[%emt 0:00:01]} Qc5 {[%emt 0:00:30]} 37. Nb3 {[%emt 0:00:25]} Qe5 {[%emt 0:00:27]} 38. Qd4 {[%emt 0:00:14]} Qxd4 {[%emt 0:00:24]} 39. Nxd4 {[%emt 0:00:01]} b4 {[%emt 0:00:20]} 40. Nf5 {[%emt 0:00:16]} Ra7 {[%emt 0:00:09]} 41. c3 {[%emt 0:00:13]} Bxc3 {[%emt 0:00:13]} 42. Kc2 {[%emt 0:00:08]} Ra2+ {[%emt 0:00:18]} 43. Kd3 {[%emt 0:00:01]} Be5 {[%emt 0:00:26]} 44. Rb1 {[%emt 0:00:12]} Rf2 {[%emt 0:00:27]} 45. Nxh6+ {[%emt 0:00:01]} Kh7 {[%emt 0:00:00]} 46. Ng4 {[%emt 0:00:01]} Rf3+ {[%emt 0:00:12]} 47. Ke4 {[%emt 0:00:21]} Rf4+ {[%emt 0:00:02]} 48. Ke3 {[%emt 0:00:02]} Ne6 {[%emt 0:00:18]} 49. Nxe5 {[%emt 0:00:02]} dxe5 {[%emt 0:00:02]} 50. h5 {[%emt 0:00:02]} Rh4 {[%emt 0:00:14]} 51. Rh1 {[%emt 0:00:12]} Rf4 {[%emt 0:00:16]} 52. Rhf1 {[%emt 0:00:18]} Kh6 {[%emt 0:00:30]} 53. Rxf4 {[%emt 0:00:25]} exf4+ {[%emt 0:00:07]} 54. Ke4 {[%emt 0:00:01]} Kxh5 {[%emt 0:00:20]} 55. Kf5 {[%emt 0:00:09]} Nd4+ {[%emt 0:00:07]} 56. Kxf4 {[%emt 0:00:03]} g5+ {[%emt 0:00:09]} 57. Ke4 {[%emt 0:00:01]} Nc6 {[%emt 0:00:20]} 1/2-1/2

[Event "European Women Rapid-ch 2023"]
[Site "Monaco"]
[Date "2024.01.13"]
[Round "2.6"]
[White "Khademalsharieh, Sarasadat"]
[Black "Calzetta Ruiz, Monica"]
[Result "1-0"]
[ECO "A57"]
[WhiteElo "2486"]
[BlackElo "2241"]
[Annotator "RC"]
[PlyCount "67"]
[EventDate "2023.12.19"]
[EventType "swiss"]
[EventCountry "MNC"]
[SourceTitle "playchess.com"]
[Source "ChessBase"]
[SourceQuality "1"]
[TimeControl "900+10"]

1. d4 {[%emt 0:00:04]} Nf6 {[%emt 0:00:02]} 2. c4 {[%emt 0:00:03]} c5 {[%emt 0:00:02]} 3. d5 {[%emt 0:00:04]} b5 {[%emt 0:00:02]} 4. Qc2 {[%emt 0:00:03]} d6 {[%emt 0:01:39]} 5. e4 {[%emt 0:00:16]} g6 {[%emt 0:00:04]} 6. cxb5 {[%emt 0:00:29]} Bg7 {[%emt 0:00:02]} 7. Nc3 {[%emt 0:00:05]} O-O {[%emt 0:00:03]} 8. Nf3 {[%emt 0:00:12]} a6 {[%emt 0:00:02]} 9. h3 {[%emt 0:00:34]} Nfd7 {[%emt 0:00:19]} 10. Be2 {[%emt 0:01:22]} axb5 {[%emt 0:00:05]} 11. Nxb5 {[%emt 0:00:12]} Na6 {[%emt 0:00:57]} 12. O-O {[%emt 0:00:16]} Nb4 {[%emt 0:00:04]} 13. Qb3 {[%emt 0:00:02]} Ba6 {[%emt 0:00:38]} 14. Bd2 {[%emt 0:00:37]} Qb6 {[%emt 0:02:12]} 15. a4 {[%emt 0:00:27]} Rfb8 {[%emt 0:00:50]} 16. Rfc1 {[%emt 0:01:11]} Ne5 {[%emt 0:03:50]} 17. Nxe5 {[%emt 0:00:33]} Bxe5 {[%emt 0:00:02]} 18. Bxb4 {[%emt 0:00:37]} cxb4 {[%emt 0:00:02]} 19. Qxb4 {[%emt 0:00:16]} Bxb5 {[%emt 0:00:38]} 20. Bxb5 {[%emt 0:00:06]} Ra7 {[%emt 0:03:43]} 21. Rab1 {[%emt 0:00:32]} e6 {[%emt 0:00:36]} 22. Rc6 {[%emt 0:00:44]} Qd8 {[%emt 0:00:02]} 23. Qd2 {[%emt 0:01:31]} exd5 {[%emt 0:00:42]} 24. f4 {[%emt 0:00:29]} Bg7 {[%emt 0:00:16]} 25. Qxd5 {[%emt 0:00:04]} Qh4 {[%emt 0:00:10]} 26. Rf1 {[%emt 0:00:30]} Bxb2 {[%emt 0:01:07]} 27. Rxd6 {[%emt 0:00:05]} Rc7 {[%emt 0:00:27]} 28. e5 {[%emt 0:00:19]} Ba3 {[%emt 0:00:48]} 29. Rc6 {[%emt 0:00:23]} Rd8 {[%emt 0:00:01]} 30. Qb3 {[%emt 0:00:36]} Bc5+ {[%emt 0:00:01]} 31. Kh2 {[%emt 0:00:12]} Rxc6 {[%emt 0:00:25]} 32. Bxc6 {[%emt 0:00:02]} Rd4 {[%emt 0:00:19]} 33. e6 {[%emt 0:00:48]} Rxf4 {[%emt 0:00:08]} 34. Qb8+ {[%emt 0:00:01]} 1-0

[Event "European Women Rapid-ch 2023"]
[Site "Monaco"]
[Date "2024.01.13"]
[Round "2.7"]
[White "Gvetadze, Sofio"]
[Black "Ushenina, Anna"]
[Result "1/2-1/2"]
[ECO "C41"]
[WhiteElo "2298"]
[BlackElo "2415"]
[Annotator "RC"]
[PlyCount "65"]
[EventDate "2023.12.19"]
[EventType "swiss"]
[EventCountry "MNC"]
[SourceTitle "playchess.com"]
[Source "ChessBase"]
[SourceQuality "1"]
[TimeControl "900+10"]

1. e4 {[%emt 0:00:02]} d6 {[%emt 0:00:06]} 2. d4 {[%emt 0:00:05]} Nf6 {[%emt 0:00:02]} 3. Nc3 {[%emt 0:00:03]} e5 {[%emt 0:00:01]} 4. Nf3 {[%emt 0:00:05]} Nbd7 {[%emt 0:00:01]} 5. Bc4 {[%emt 0:00:09]} Be7 {[%emt 0:00:02]} 6. O-O {[%emt 0:00:07]} O-O {[%emt 0:00:02]} 7. Re1 {[%emt 0:00:06]} c6 {[%emt 0:00:02]} 8. a4 {[%emt 0:00:02]} h6 {[%emt 0:00:01]} 9. h3 {[%emt 0:00:14]} Re8 {[%emt 0:00:03]} 10. b3 {[%emt 0:00:34]} Qc7 {[%emt 0:01:30]} 11. Ba3 {[%emt 0:00:19]} Rb8 {[%emt 0:01:04]} 12. dxe5 {[%emt 0:00:17]} dxe5 {[%emt 0:00:39]} 13. Bxe7 {[%emt 0:00:06]} Rxe7 {[%emt 0:00:01]} 14. Nh4 {[%emt 0:00:06]} Nf8 {[%emt 0:00:41]} 15. Qf3 {[%emt 0:00:24]} a6 {[%emt 0:00:34]} 16. a5 {[%emt 0:00:19]} Be6 {[%emt 0:00:25]} 17. Bf1 {[%emt 0:01:05]} Rd8 {[%emt 0:00:43]} 18. Ne2 {[%emt 0:00:51]} Ng6 {[%emt 0:00:20]} 19. Nxg6 {[%emt 0:01:05]} fxg6 {[%emt 0:00:01]} 20. Nc1 {[%emt 0:00:18]} Nh5 {[%emt 0:02:48]} 21. g3 {[%emt 0:01:10]} Qc8 {[%emt 0:00:50]} 22. Kh2 {[%emt 0:02:34]} Rd2 {[%emt 0:01:10]} 23. Re2 {[%emt 0:00:02]} Rd1 {[%emt 0:00:33]} 24. Bg2 {[%emt 0:00:06]} Qf8 {[%emt 0:05:52]} 25. Qe3 {[%emt 0:02:52]} Red7 {[%emt 0:00:23]} 26. Ra4 {[%emt 0:01:51]} g5 {[%emt 0:00:37]} 27. Re1 {[%emt 0:00:28]} R1d2 {[%emt 0:00:41]} 28. Re2 {[%emt 0:00:12]} Rd1 {[%emt 0:00:02]} 29. Re1 {[%emt 0:00:02]} R1d2 {[%emt 0:00:04]} 30. Re2 {[%emt 0:00:13]} Rd1 {[%emt 0:00:02]} 31. Re1 {[%emt 0:00:02]} R1d2 {[%emt 0:00:00]} 32. Re2 {[%emt 0:00:44]} Rd1 {[%emt 0:00:02]} 33. Re1 {[%emt 0:00:02]} 1/2-1/2

[Event "European Women Rapid-ch 2023"]
[Site "Monaco"]
[Date "2024.01.13"]
[Round "2.8"]
[White "Javakhishvili, Lela"]
[Black "Khurtsilava, Inga"]
[Result "1-0"]
[ECO "A37"]
[WhiteElo "2433"]
[BlackElo "2186"]
[Annotator "RC"]
[PlyCount "79"]
[EventDate "2023.12.19"]
[EventType "swiss"]
[EventCountry "MNC"]
[SourceTitle "playchess.com"]
[Source "ChessBase"]
[SourceQuality "1"]
[TimeControl "900+10"]

1. Nf3 {[%emt 0:00:03]} c5 {[%emt 0:01:21]} 2. c4 {[%emt 0:00:05]} Nc6 {[%emt 0:00:03]} 3. g3 {[%emt 0:00:03]} g6 {[%emt 0:00:01]} 4. Bg2 {[%emt 0:00:05]} Bg7 {[%emt 0:00:01]} 5. Nc3 {[%emt 0:00:04]} e6 {[%emt 0:00:02]} 6. O-O {[%emt 0:00:16]} Nge7 {[%emt 0:00:02]} 7. d3 {[%emt 0:00:51]} O-O {[%emt 0:00:07]} 8. Bg5 {[%emt 0:00:03]} h6 {[%emt 0:00:11]} 9. Bd2 {[%emt 0:00:03]} Kh7 {[%emt 0:00:27]} 10. a3 {[%emt 0:00:04]} d5 {[%emt 0:00:14]} 11. Rc1 {[%emt 0:00:50]} d4 {[%emt 0:00:51]} 12. Na4 {[%emt 0:00:06]} b6 {[%emt 0:00:36]} 13. b4 {[%emt 0:00:03]} Qd6 {[%emt 0:01:31]} 14. b5 {[%emt 0:00:21]} Nd8 {[%emt 0:01:34]} 15. Ng5+ {[%emt 0:01:55]} hxg5 {[%emt 0:00:09]} 16. Bxa8 {[%emt 0:00:02]} g4 {[%emt 0:00:53]} 17. e3 {[%emt 0:00:12]} dxe3 {[%emt 0:01:21]} 18. Bxe3 {[%emt 0:00:07]} e5 {[%emt 0:01:06]} 19. Nc3 {[%emt 0:00:08]} f5 {[%emt 0:00:02]} 20. f4 {[%emt 0:01:16]} Nb7 {[%emt 0:01:48]} 21. fxe5 {[%emt 0:00:26]} Bxe5 {[%emt 0:00:44]} 22. Ne4 {[%emt 0:02:13]} Qb8 {[%emt 0:00:37]} 23. d4 {[%emt 0:02:55]} cxd4 {[%emt 0:01:22]} 24. Bxd4 {[%emt 0:00:39]} Rd8 {[%emt 0:00:01]} 25. Ng5+ {[%emt 0:01:06]} Kg8 {[%emt 0:00:07]} 26. Bxe5 {[%emt 0:00:03]} Qxe5 {[%emt 0:01:11]} 27. Qe1 {[%emt 0:00:02]} Qf6 {[%emt 0:02:28]} 28. Bxb7 {[%emt 0:01:42]} Bxb7 {[%emt 0:00:07]} 29. Qe6+ {[%emt 0:00:01]} Qxe6 {[%emt 0:00:01]} 30. Nxe6 {[%emt 0:00:02]} Rd2 {[%emt 0:00:12]} 31. Rf2 {[%emt 0:00:04]} Rd3 {[%emt 0:00:04]} 32. c5 {[%emt 0:00:06]} Be4 {[%emt 0:01:01]} 33. c6 {[%emt 0:00:24]} Rd6 {[%emt 0:00:01]} 34. Ng5 {[%emt 0:00:22]} Bd5 {[%emt 0:00:18]} 35. Rd2 {[%emt 0:00:15]} Kg7 {[%emt 0:00:01]} 36. c7 {[%emt 0:00:04]} Kf6 {[%emt 0:00:01]} 37. Nh7+ {[%emt 0:00:28]} Kg7 {[%emt 0:00:12]} 38. c8=Q {[%emt 0:00:23]} Nxc8 {[%emt 0:00:04]} 39. Rxc8 {[%emt 0:00:22]} Kxh7 {[%emt 0:00:02]} 40. Rc1 {[%emt 0:00:12]} 1-0

[Event "European Women Rapid-ch 2023"]
[Site "Monaco"]
[Date "2024.01.13"]
[Round "2.9"]
[White "Haussernot, Cecile"]
[Black "Hoang, Thanh Trang"]
[Result "1-0"]
[ECO "C02"]
[WhiteElo "2136"]
[BlackElo "2382"]
[Annotator "RC"]
[PlyCount "115"]
[EventDate "2023.12.19"]
[EventType "swiss"]
[EventCountry "MNC"]
[SourceTitle "playchess.com"]
[Source "ChessBase"]
[SourceQuality "1"]
[TimeControl "900+10"]

1. e4 {[%emt 0:01:30]} e6 {[%emt 0:00:04]} 2. d4 {[%emt 0:00:02]} d5 {[%emt 0:00:03]} 3. e5 {[%emt 0:00:02]} c5 {[%emt 0:00:06]} 4. c3 {[%emt 0:00:03]} Nc6 {[%emt 0:00:04]} 5. Nf3 {[%emt 0:00:03]} Qb6 {[%emt 0:00:13]} 6. a3 {[%emt 0:00:03]} c4 {[%emt 0:00:08]} 7. Nbd2 {[%emt 0:00:03]} Na5 {[%emt 0:00:07]} 8. Rb1 {[%emt 0:00:03]} Bd7 {[%emt 0:00:16]} 9. h4 {[%emt 0:00:03]} h6 {[%emt 0:00:51]} 10. h5 {[%emt 0:00:33]} Ne7 {[%emt 0:00:56]} 11. b4 {[%emt 0:00:11]} cxb3 {[%emt 0:00:14]} 12. Nxb3 {[%emt 0:00:06]} Ba4 {[%emt 0:00:11]} 13. Nxa5 {[%emt 0:00:29]} Qxa5 {[%emt 0:00:07]} 14. Qd2 {[%emt 0:00:02]} Qc7 {[%emt 0:00:09]} 15. Qb2 {[%emt 0:01:19]} b6 {[%emt 0:00:23]} 16. Bd2 {[%emt 0:02:01]} Nc6 {[%emt 0:00:34]} 17. c4 {[%emt 0:01:52]} dxc4 {[%emt 0:01:59]} 18. Bxc4 {[%emt 0:00:11]} Nb4 {[%emt 0:01:54]} 19. O-O {[%emt 0:02:41]} Qxc4 {[%emt 0:00:30]} 20. axb4 {[%emt 0:00:20]} Bc6 {[%emt 0:01:41]} 21. Rfc1 {[%emt 0:01:05]} Qb5 {[%emt 0:00:05]} 22. Rc3 {[%emt 0:01:00]} Be7 {[%emt 0:01:06]} 23. Qc2 {[%emt 0:00:43]} Bd5 {[%emt 0:01:06]} 24. Nh2 {[%emt 0:00:38]} Qe2 {[%emt 0:02:14]} 25. Re1 {[%emt 0:01:03]} Qxh5 {[%emt 0:00:29]} 26. Qa4+ {[%emt 0:00:29]} Kf8 {[%emt 0:00:04]} 27. Qd7 {[%emt 0:00:11]} Re8 {[%emt 0:01:20]} 28. Rc8 {[%emt 0:01:10]} f5 {[%emt 0:00:19]} 29. exf6 {[%emt 0:00:54]} gxf6 {[%emt 0:00:08]} 30. Rec1 {[%emt 0:00:40]} Kf7 {[%emt 0:00:10]} 31. Rxe8 {[%emt 0:00:15]} Rxe8 {[%emt 0:00:02]} 32. Bf4 {[%emt 0:00:07]} Qg6 {[%emt 0:00:29]} 33. Bg3 {[%emt 0:00:04]} h5 {[%emt 0:00:12]} 34. Nf3 {[%emt 0:00:42]} Bxf3 {[%emt 0:00:08]} 35. gxf3 {[%emt 0:00:02]} h4 {[%emt 0:00:04]} 36. d5 {[%emt 0:00:01]} hxg3 {[%emt 0:00:33]} 37. d6 {[%emt 0:00:02]} gxf2+ {[%emt 0:00:09]} 38. Kxf2 {[%emt 0:00:02]} Qg5 {[%emt 0:01:37]} 39. Rc7 {[%emt 0:00:14]} f5 {[%emt 0:00:01]} 40. Rxa7 {[%emt 0:00:12]} Kf8 {[%emt 0:00:39]} 41. dxe7+ {[%emt 0:00:30]} Qxe7 {[%emt 0:00:02]} 42. Qd4 {[%emt 0:00:11]} e5 {[%emt 0:00:21]} 43. Qxb6 {[%emt 0:00:03]} Qh4+ {[%emt 0:00:07]} 44. Ke2 {[%emt 0:00:11]} Rd8 {[%emt 0:00:17]} 45. Qc5+ {[%emt 0:00:15]} Kg8 {[%emt 0:00:01]} 46. Qxe5 {[%emt 0:00:11]} Qc4+ {[%emt 0:00:03]} 47. Kf2 {[%emt 0:00:03]} Rd2+ {[%emt 0:00:14]} 48. Kg3 {[%emt 0:00:01]} f4+ {[%emt 0:00:05]} 49. Kh4 {[%emt 0:00:09]} Rh2+ {[%emt 0:00:04]} 50. Kg5 {[%emt 0:00:13]} Rg2+ {[%emt 0:00:06]} 51. Kh4 {[%emt 0:00:15]} Rh2+ {[%emt 0:00:05]} 52. Kg4 {[%emt 0:00:02]} Rg2+ {[%emt 0:00:33]} 53. Kh3 {[%emt 0:00:05]} Rg3+ {[%emt 0:00:20]} 54. Kh4 {[%emt 0:00:02]} Qc8 {[%emt 0:00:09]} 55. Qd5+ {[%emt 0:00:07]} Kh8 {[%emt 0:00:05]} 56. Qh5+ {[%emt 0:00:05]} Kg8 {[%emt 0:00:03]} 57. Qh7+ {[%emt 0:00:03]} Kf8 {[%emt 0:00:01]} 58. Qf7# {[%emt 0:00:01]} 1-0

[Event "European Women Rapid-ch 2023"]
[Site "Monaco"]
[Date "2024.01.13"]
[Round "2.10"]
[White "Wagner, Dinara"]
[Black "Pavlidou, Ekaterini"]
[Result "1-0"]
[ECO "E12"]
[WhiteElo "2459"]
[BlackElo "2206"]
[Annotator "RC"]
[PlyCount "67"]
[EventDate "2023.12.19"]
[EventType "swiss"]
[EventCountry "MNC"]
[SourceTitle "playchess.com"]
[Source "ChessBase"]
[SourceQuality "1"]
[TimeControl "900+10"]

1. d4 {[%emt 0:00:02]} Nf6 {[%emt 0:00:01]} 2. c4 {[%emt 0:00:02]} e6 {[%emt 0:00:01]} 3. Nf3 {[%emt 0:00:01]} b6 {[%emt 0:00:02]} 4. a3 {[%emt 0:00:01]} Bb7 {[%emt 0:00:04]} 5. Nc3 {[%emt 0:00:03]} d5 {[%emt 0:00:01]} 6. Bf4 {[%emt 0:00:06]} Bd6 {[%emt 0:00:08]} 7. Bxd6 {[%emt 0:00:03]} cxd6 {[%emt 0:00:09]} 8. cxd5 {[%emt 0:00:08]} exd5 {[%emt 0:00:13]} 9. e3 {[%emt 0:01:23]} O-O {[%emt 0:00:04]} 10. Be2 {[%emt 0:00:10]} Ba6 {[%emt 0:00:30]} 11. Bxa6 {[%emt 0:00:47]} Nxa6 {[%emt 0:00:02]} 12. Qb3 {[%emt 0:00:04]} Nc7 {[%emt 0:00:06]} 13. O-O {[%emt 0:00:02]} Qd7 {[%emt 0:00:30]} 14. Rfc1 {[%emt 0:00:08]} Rfc8 {[%emt 0:02:17]} 15. Rc2 {[%emt 0:00:19]} Rab8 {[%emt 0:00:56]} 16. Rac1 {[%emt 0:00:18]} h6 {[%emt 0:00:37]} 17. h3 {[%emt 0:00:09]} g5 {[%emt 0:00:30]} 18. Ne1 {[%emt 0:00:15]} a6 {[%emt 0:00:38]} 19. Nd3 {[%emt 0:00:29]} Kg7 {[%emt 0:01:28]} 20. Ne2 {[%emt 0:01:44]} Na8 {[%emt 0:02:03]} 21. Nb4 {[%emt 0:01:28]} Rxc2 {[%emt 0:00:02]} 22. Qxc2 {[%emt 0:00:09]} a5 {[%emt 0:00:15]} 23. Na2 {[%emt 0:02:13]} b5 {[%emt 0:00:08]} 24. Ng3 {[%emt 0:00:12]} b4 {[%emt 0:03:18]} 25. axb4 {[%emt 0:00:27]} axb4 {[%emt 0:00:01]} 26. b3 {[%emt 0:00:08]} Ng8 {[%emt 0:01:27]} 27. Nf5+ {[%emt 0:01:33]} Kf6 {[%emt 0:00:10]} 28. g4 {[%emt 0:00:03]} h5 {[%emt 0:00:02]} 29. Qc6 {[%emt 0:00:38]} Qd8 {[%emt 0:01:23]} 30. Nxd6 {[%emt 0:01:07]} Rb6 {[%emt 0:00:04]} 31. Nb7+ {[%emt 0:00:10]} Rxc6 {[%emt 0:00:21]} 32. Rxc6+ {[%emt 0:00:01]} Ke7 {[%emt 0:00:01]} 33. Nxd8 {[%emt 0:00:02]} Kxd8 {[%emt 0:00:01]} 34. gxh5 {[%emt 0:00:08]} 1-0